[Event "*** SCC Grand Prix: Titled Tuesday Blitz"]
[Site "Chess.com"]
[Date "2020.08.11"]
[Round "2"]
[White "Chernobay_Artem"]
[Black "GMJustin"]
[Result "0-1"]
[WhiteElo "2511"]
[BlackElo "2288"]
[TimeControl "180+1"]
[EndTime "10:20:32 PDT"]
[Termination "GMJustin won by resignation"]

1. d4 {[%clk 0:03:00.9]} 1... Nf6 {[%clk 0:02:55.1]} 2. c4 {[%clk 0:03:00.9]}
2... e6 {[%clk 0:02:49]} 3. Nf3 {[%clk 0:03:00.1]} 3... d5 {[%clk 0:02:41.9]} 4.
g3 {[%clk 0:02:59.9]} 4... dxc4 {[%clk 0:02:38.3]} 5. Bg2 {[%clk 0:02:59.6]}
5... Bb4+ {[%clk 0:02:37.9]} 6. Bd2 {[%clk 0:02:57.8]} 6... c5 {[%clk
0:02:37.8]} 7. dxc5 {[%clk 0:02:33.3]} 7... Bxc5 {[%clk 0:02:30.9]} 8. O-O
{[%clk 0:02:29.4]} 8... O-O {[%clk 0:02:25.2]} 9. Qc2 {[%clk 0:02:07.8]} 9...
Nc6 {[%clk 0:02:13]} 10. Qxc4 {[%clk 0:01:53.2]} 10... Be7 {[%clk 0:02:09.3]}
11. Nc3 {[%clk 0:01:40.5]} 11... e5 {[%clk 0:02:06.5]} 12. Rfd1 {[%clk
0:01:31.8]} 12... Qb6 {[%clk 0:01:00.3]} 13. Na4 {[%clk 0:00:57]} 13... Qc7
{[%clk 0:00:39.2]} 14. Rac1 {[%clk 0:00:53.3]} 14... Be6 {[%clk 0:00:37]} 15.
Qc2 {[%clk 0:00:53.1]} 15... Rac8 {[%clk 0:00:25.6]} 16. Ng5 {[%clk 0:00:50.7]}
16... Bg4 {[%clk 0:00:20.2]} 17. Nc3 {[%clk 0:00:48.7]} 17... Nd4 {[%clk
0:00:13.3]} 18. Qd3 {[%clk 0:00:45.6]} 18... Bf5 {[%clk 0:00:08.9]} 19. Be4
{[%clk 0:00:38.2]} 19... Nxe4 {[%clk 0:00:06.2]} 20. Ncxe4 {[%clk 0:00:36.9]}
20... Qd7 {[%clk 0:00:05.9]} 21. Bc3 {[%clk 0:00:25.5]} 21... h6 {[%clk
0:00:04.8]} 22. Nf3 {[%clk 0:00:23]} 22... Nxf3+ {[%clk 0:00:02.5]} 23. Qxf3
{[%clk 0:00:21.7]} 23... Qe6 {[%clk 0:00:02.5]} 24. Rd5 {[%clk 0:00:18.3]} 24...
Bg4 {[%clk 0:00:02.4]} 25. Qd3 {[%clk 0:00:16.6]} 25... Rfd8 {[%clk 0:00:02.3]}
26. Rd1 {[%clk 0:00:09.8]} 26... Rxd5 {[%clk 0:00:02.2]} 27. Qxd5 {[%clk
0:00:09.7]} 27... Qxd5 {[%clk 0:00:02.2]} 28. Rxd5 {[%clk 0:00:09.4]} 28... Bxe2
{[%clk 0:00:02.2]} 29. Rd7 {[%clk 0:00:07.9]} 29... Bf8 {[%clk 0:00:01.7]} 30.
Kg2 {[%clk 0:00:06.2]} 30... Bc4 {[%clk 0:00:01.5]} 31. Bxe5 {[%clk 0:00:05]}
31... Bxa2 {[%clk 0:00:01.1]} 32. Nc3 {[%clk 0:00:03.9]} 32... Bb3 {[%clk
0:00:01.2]} 33. Rxb7 {[%clk 0:00:04]} 33... Bc4 {[%clk 0:00:01.5]} 34. Rxa7
{[%clk 0:00:03.1]} 34... f6 {[%clk 0:00:01.9]} 35. Bd4 {[%clk 0:00:03]} 35...
Bd6 {[%clk 0:00:01.9]} 36. Be3 {[%clk 0:00:02.9]} 36... Be6 {[%clk 0:00:02]} 37.
Ra6 {[%clk 0:00:02.1]} 37... Rd8 {[%clk 0:00:01.9]} 38. f3 {[%clk 0:00:02.6]}
38... Bc4 {[%clk 0:00:01.8]} 39. Ne4 {[%clk 0:00:02.9]} 39... Bxa6 {[%clk
0:00:01.7]} 40. Bb6 {[%clk 0:00:03]} 40... Rd7 {[%clk 0:00:02.1]} 41. b3 {[%clk
0:00:02.5]} 41... Be7 {[%clk 0:00:02.5]} 42. Kf2 {[%clk 0:00:02.2]} 42... Bb7
{[%clk 0:00:02.9]} 43. Nc3 {[%clk 0:00:02]} 43... Bd6 {[%clk 0:00:03]} 44. Nb5
{[%clk 0:00:01.5]} 44... Be5 {[%clk 0:00:03.2]} 45. Ke2 {[%clk 0:00:01.6]} 45...
Bc6 {[%clk 0:00:03.5]} 46. Na7 {[%clk 0:00:01.6]} 46... Rb7 {[%clk 0:00:02.8]}
47. Nxc6 {[%clk 0:00:01.5]} 47... Rxb6 {[%clk 0:00:03]} 48. Na5 {[%clk
0:00:02.4]} 48... Rb5 {[%clk 0:00:03.1]} 49. Nc6 {[%clk 0:00:02.6]} 49... Rxb3
{[%clk 0:00:03]} 50. f4 {[%clk 0:00:03.5]} 50... Bd6 {[%clk 0:00:02.9]} 51. Kf2
{[%clk 0:00:03.6]} 51... Rb2+ {[%clk 0:00:03]} 52. Kf3 {[%clk 0:00:03.8]} 52...
Bc5 {[%clk 0:00:03.2]} 53. Kg4 {[%clk 0:00:03.2]} 53... f5+ {[%clk 0:00:03.3]}
54. Kxf5 {[%clk 0:00:03.3]} 54... Rxh2 {[%clk 0:00:03.6]} 55. Ne5 {[%clk
0:00:03.5]} 55... Rg2 {[%clk 0:00:03.5]} 56. g4 {[%clk 0:00:03.3]} 56... Bd4
{[%clk 0:00:03.5]} 57. Nc6 {[%clk 0:00:03.2]} 57... Be3 {[%clk 0:00:03.6]} 58.
Ne7+ {[%clk 0:00:03.1]} 58... Kf7 {[%clk 0:00:03.3]} 59. Nd5 {[%clk 0:00:03.8]}
59... Bc1 {[%clk 0:00:03.4]} 60. Ke4 {[%clk 0:00:04.2]} 60... g6 {[%clk
0:00:03.6]} 61. Kf3 {[%clk 0:00:04.5]} 61... Rg1 {[%clk 0:00:03.7]} 62. Nc3
{[%clk 0:00:03.8]} 62... h5 {[%clk 0:00:03.5]} 63. gxh5 {[%clk 0:00:03]} 63...
gxh5 {[%clk 0:00:03.2]} 64. Ne2 {[%clk 0:00:03.9]} 64... Rf1+ {[%clk 0:00:03.2]}
65. Kg2 {[%clk 0:00:04.6]} 65... Re1 {[%clk 0:00:03.4]} 66. Kf2 {[%clk 0:00:05]}
66... Rd1 {[%clk 0:00:03.7]} 67. Nc3 {[%clk 0:00:04.8]} 67... Rd2+ {[%clk
0:00:02.7]} 68. Kf3 {[%clk 0:00:04.9]} 68... Rd3+ {[%clk 0:00:03]} 0-1

[Event "*** SCC Grand Prix: Titled Tuesday Blitz"]
[Site "Chess.com"]
[Date "2020.08.11"]
[Round "2"]
[White "maximnovik"]
[Black "EndGameDestroyer"]
[Result "1-0"]
[WhiteElo "2452"]
[BlackElo "2237"]
[TimeControl "180+1"]
[EndTime "10:20:32 PDT"]
[Termination "maximnovik won by resignation"]

1. d4 {[%clk 0:03:00.9]} 1... Nf6 {[%clk 0:02:59.7]} 2. c4 {[%clk 0:03:00.3]}
2... e6 {[%clk 0:03:00.1]} 3. Nc3 {[%clk 0:03:00.7]} 3... Bb4 {[%clk 0:02:59.5]}
4. e3 {[%clk 0:03:00.9]} 4... O-O {[%clk 0:02:58.6]} 5. Ne2 {[%clk 0:03:01.3]}
5... Re8 {[%clk 0:02:57.3]} 6. a3 {[%clk 0:03:00.2]} 6... Bf8 {[%clk 0:02:57.4]}
7. Nf4 {[%clk 0:02:57.1]} 7... b6 {[%clk 0:02:52.7]} 8. Be2 {[%clk 0:02:56.6]}
8... Bb7 {[%clk 0:02:52.4]} 9. O-O {[%clk 0:02:56.6]} 9... d6 {[%clk 0:02:43]}
10. Bf3 {[%clk 0:02:54.7]} 10... Bxf3 {[%clk 0:02:39.1]} 11. Qxf3 {[%clk
0:02:54.6]} 11... c6 {[%clk 0:02:32.9]} 12. Rd1 {[%clk 0:02:53.2]} 12... d5
{[%clk 0:02:32.2]} 13. b3 {[%clk 0:02:51]} 13... Nbd7 {[%clk 0:02:30.3]} 14. Bb2
{[%clk 0:02:50.6]} 14... e5 {[%clk 0:02:22.2]} 15. dxe5 {[%clk 0:02:45.4]} 15...
Nxe5 {[%clk 0:02:22.2]} 16. Qg3 {[%clk 0:02:40.6]} 16... Bd6 {[%clk 0:02:07.1]}
17. cxd5 {[%clk 0:02:38]} 17... cxd5 {[%clk 0:02:05.8]} 18. Ncxd5 {[%clk
0:02:37.2]} 18... Nxd5 {[%clk 0:02:02.7]} 19. Rxd5 {[%clk 0:02:37.1]} 19... Ng6
{[%clk 0:01:52.9]} 20. Rad1 {[%clk 0:02:28.9]} 20... Bxf4 {[%clk 0:01:37.9]} 21.
Rxd8 {[%clk 0:02:18.4]} 21... Bxg3 {[%clk 0:01:24]} 22. Rxe8+ {[%clk 0:02:10.2]}
22... Rxe8 {[%clk 0:01:24.9]} 23. hxg3 {[%clk 0:02:09.8]} 23... f6 {[%clk
0:01:17.7]} 24. Kf1 {[%clk 0:02:08.1]} 24... Kf7 {[%clk 0:01:17.3]} 25. Ke2
{[%clk 0:02:08]} 25... Ke6 {[%clk 0:01:15.1]} 26. Rc1 {[%clk 0:02:00.5]} 26...
Re7 {[%clk 0:01:05.7]} 27. Rc8 {[%clk 0:01:56.9]} 27... Rd7 {[%clk 0:01:01.4]}
28. Ra8 {[%clk 0:01:51.9]} 28... Ne7 {[%clk 0:00:58.8]} 29. g4 {[%clk
0:01:47.6]} 29... Rc7 {[%clk 0:00:57.4]} 30. Kd3 {[%clk 0:01:43.7]} 30... Rd7+
{[%clk 0:00:53.4]} 31. Ke2 {[%clk 0:01:37.8]} 31... Rc7 {[%clk 0:00:53]} 32. Bd4
{[%clk 0:01:28.9]} 32... Nc6 {[%clk 0:00:46.5]} 33. Kd3 {[%clk 0:01:20.8]} 33...
Rd7 {[%clk 0:00:39.1]} 34. f3 {[%clk 0:01:13.2]} 34... h6 {[%clk 0:00:29.7]} 35.
Re8+ {[%clk 0:01:04.6]} 35... Kf7 {[%clk 0:00:27.4]} 36. Rc8 {[%clk 0:01:03.7]}
36... Na5 {[%clk 0:00:21.7]} 37. b4 {[%clk 0:01:01.8]} 37... Nb7 {[%clk
0:00:20.3]} 38. Ra8 {[%clk 0:00:49.5]} 38... Nd6 {[%clk 0:00:20.1]} 39. a4
{[%clk 0:00:48.3]} 39... Ke6 {[%clk 0:00:20.5]} 40. a5 {[%clk 0:00:45.8]} 40...
bxa5 {[%clk 0:00:18.6]} 41. bxa5 {[%clk 0:00:44.8]} 41... Nb5 {[%clk 0:00:19]}
42. Kc4 {[%clk 0:00:34.8]} 42... Nd6+ {[%clk 0:00:19.2]} 43. Kb4 {[%clk
0:00:28.8]} 43... Rb7+ {[%clk 0:00:19.1]} 44. Ka4 {[%clk 0:00:26.6]} 44... Nb5
{[%clk 0:00:10.9]} 45. Bc5 {[%clk 0:00:24]} 45... Kd5 {[%clk 0:00:10.2]} 46. Bb4
{[%clk 0:00:21.9]} 46... Kc4 {[%clk 0:00:06.8]} 47. Rc8+ {[%clk 0:00:20.1]}
47... Kd3 {[%clk 0:00:07]} 48. a6 {[%clk 0:00:19]} 48... Rb6 {[%clk 0:00:06]}
49. Bc5 {[%clk 0:00:18.8]} 49... Nc3+ {[%clk 0:00:05.1]} 50. Ka3 {[%clk
0:00:17.1]} 50... Rxa6+ {[%clk 0:00:05.5]} 51. Kb3 {[%clk 0:00:14.6]} 51... Ne2
{[%clk 0:00:04]} 52. Rd8+ {[%clk 0:00:12.7]} 52... Nd4+ {[%clk 0:00:04.3]} 53.
Rxd4+ {[%clk 0:00:12.1]} 53... Ke2 {[%clk 0:00:04.8]} 54. Rd7 {[%clk 0:00:09.3]}
54... Kf2 {[%clk 0:00:04.6]} 55. Rxg7 {[%clk 0:00:08]} 55... Kxg2 {[%clk
0:00:04.3]} 56. f4 {[%clk 0:00:08.3]} 56... Kf3 {[%clk 0:00:04.1]} 57. Kc4
{[%clk 0:00:08.7]} 57... Rc6 {[%clk 0:00:03.6]} 58. Kd5 {[%clk 0:00:08.3]} 58...
Ra6 {[%clk 0:00:03.4]} 59. Rg6 {[%clk 0:00:08.5]} 59... Ra4 {[%clk 0:00:02.6]}
60. Rxf6 {[%clk 0:00:08]} 60... Kxg4 {[%clk 0:00:03.1]} 61. Rxh6 {[%clk
0:00:08.1]} 61... Kf5 {[%clk 0:00:04]} 62. Rh5+ {[%clk 0:00:08]} 62... Kg6
{[%clk 0:00:04]} 63. Rg5+ {[%clk 0:00:08]} 63... Kf7 {[%clk 0:00:04.4]} 64. Bd4
{[%clk 0:00:06]} 64... Ke8 {[%clk 0:00:03.6]} 65. Ke6 {[%clk 0:00:05.2]} 65...
Ra6+ {[%clk 0:00:03.1]} 66. Kd5 {[%clk 0:00:05]} 66... Ra5+ {[%clk 0:00:03.2]}
67. Bc5 {[%clk 0:00:05.1]} 67... Kd7 {[%clk 0:00:03]} 68. e4 {[%clk 0:00:05.4]}
68... Ra4 {[%clk 0:00:02.8]} 69. Rg7+ {[%clk 0:00:05.8]} 69... Ke8 {[%clk
0:00:03.2]} 70. f5 {[%clk 0:00:06.2]} 70... Ra6 {[%clk 0:00:03.3]} 71. e5 {[%clk
0:00:05.8]} 71... Ra5 {[%clk 0:00:03.6]} 72. f6 {[%clk 0:00:05.6]} 72... Ra1
{[%clk 0:00:03.6]} 73. f7+ {[%clk 0:00:05.7]} 1-0

[Event "*** SCC Grand Prix: Titled Tuesday Blitz"]
[Site "Chess.com"]
[Date "2020.08.11"]
[Round "2"]
[White "StephenDedalus83"]
[Black "FlamingPhoenix123"]
[Result "1/2-1/2"]
[WhiteElo "2813"]
[BlackElo "2541"]
[TimeControl "180+1"]
[EndTime "10:20:46 PDT"]
[Termination "Game drawn - insufficient material"]

1. e4 {[%clk 0:02:59.4]} 1... c5 {[%clk 0:02:58.3]} 2. Nf3 {[%clk 0:02:59.2]}
2... d6 {[%clk 0:02:57.9]} 3. d4 {[%clk 0:02:59.1]} 3... cxd4 {[%clk 0:02:58.8]}
4. Nxd4 {[%clk 0:02:59.5]} 4... Nf6 {[%clk 0:02:55.1]} 5. Nc3 {[%clk 0:03:00]}
5... Nc6 {[%clk 0:02:54.5]} 6. Bg5 {[%clk 0:02:58.6]} 6... e6 {[%clk 0:02:53.4]}
7. Qd2 {[%clk 0:02:58.5]} 7... a6 {[%clk 0:02:51]} 8. O-O-O {[%clk 0:02:58.4]}
8... h6 {[%clk 0:02:51.2]} 9. Be3 {[%clk 0:02:57.3]} 9... Nxd4 {[%clk
0:02:47.3]} 10. Bxd4 {[%clk 0:02:55.6]} 10... b5 {[%clk 0:02:48.2]} 11. f3
{[%clk 0:02:45.9]} 11... Qa5 {[%clk 0:02:43.6]} 12. Kb1 {[%clk 0:02:43.8]} 12...
b4 {[%clk 0:02:36.7]} 13. Ne2 {[%clk 0:02:42.9]} 13... e5 {[%clk 0:02:31.4]} 14.
Bf2 {[%clk 0:02:38.5]} 14... Be6 {[%clk 0:02:31.5]} 15. Nc1 {[%clk 0:02:37.9]}
15... Be7 {[%clk 0:02:29.4]} 16. Nb3 {[%clk 0:02:28]} 16... Qa4 {[%clk 0:02:24]}
17. Bd3 {[%clk 0:02:14.8]} 17... O-O {[%clk 0:02:11.4]} 18. h4 {[%clk
0:02:01.1]} 18... d5 {[%clk 0:02:10.1]} 19. exd5 {[%clk 0:01:47]} 19... Nxd5
{[%clk 0:02:11]} 20. Qe1 {[%clk 0:01:35]} 20... Nf4 {[%clk 0:01:59.7]} 21. Qxe5
{[%clk 0:01:14.2]} 21... Nxd3 {[%clk 0:01:58.5]} 22. Rxd3 {[%clk 0:01:14]} 22...
Rfd8 {[%clk 0:01:59]} 23. Rhd1 {[%clk 0:01:10.7]} 23... Rxd3 {[%clk 0:01:44.4]}
24. Rxd3 {[%clk 0:01:10.6]} 24... Bf6 {[%clk 0:01:44.5]} 25. Qe4 {[%clk
0:01:07.3]} 25... Re8 {[%clk 0:01:39.8]} 26. Re3 {[%clk 0:00:59.6]} 26... Rd8
{[%clk 0:01:29.8]} 27. Rd3 {[%clk 0:00:59.1]} 27... Re8 {[%clk 0:01:29.5]} 28.
Qb7 {[%clk 0:00:38.5]} 28... Bf5 {[%clk 0:01:07.4]} 29. Rd2 {[%clk 0:00:38.2]}
29... Be6 {[%clk 0:00:51.9]} 30. Qb6 {[%clk 0:00:31.4]} 30... Be7 {[%clk
0:00:41.5]} 31. g4 {[%clk 0:00:30.6]} 31... Bf6 {[%clk 0:00:39.9]} 32. Rd1
{[%clk 0:00:29.5]} 32... g6 {[%clk 0:00:39.9]} 33. h5 {[%clk 0:00:28.2]} 33...
g5 {[%clk 0:00:39]} 34. Bc5 {[%clk 0:00:28.1]} 34... a5 {[%clk 0:00:35.9]} 35.
Bd4 {[%clk 0:00:26.3]} 35... Bxd4 {[%clk 0:00:31]} 36. Qxd4 {[%clk 0:00:25.4]}
36... Qb5 {[%clk 0:00:24.8]} 37. Qc5 {[%clk 0:00:24.4]} 37... Qe2 {[%clk
0:00:23.3]} 38. Rc1 {[%clk 0:00:23.5]} 38... a4 {[%clk 0:00:23.4]} 39. Nd4
{[%clk 0:00:23]} 39... Qc4 {[%clk 0:00:23.8]} 40. Qxc4 {[%clk 0:00:22.4]} 40...
Bxc4 {[%clk 0:00:24.7]} 41. b3 {[%clk 0:00:22.1]} 41... Bd5 {[%clk 0:00:22.7]}
42. bxa4 {[%clk 0:00:20.6]} 42... Ra8 {[%clk 0:00:22.1]} 43. Rf1 {[%clk
0:00:20.1]} 43... Rxa4 {[%clk 0:00:21.7]} 44. Nb3 {[%clk 0:00:20.6]} 44... Ra6
{[%clk 0:00:21.4]} 45. f4 {[%clk 0:00:19.6]} 45... Rf6 {[%clk 0:00:21.4]} 46. f5
{[%clk 0:00:19.5]} 46... Rc6 {[%clk 0:00:21.6]} 47. Rd1 {[%clk 0:00:19.5]} 47...
Be4 {[%clk 0:00:21.6]} 48. Rd4 {[%clk 0:00:19.2]} 48... Bxc2+ {[%clk 0:00:21]}
49. Kb2 {[%clk 0:00:19.7]} 49... Kg7 {[%clk 0:00:16.6]} 50. Rxb4 {[%clk
0:00:19.4]} 50... Bd1 {[%clk 0:00:16.8]} 51. Rd4 {[%clk 0:00:19]} 51... Bf3
{[%clk 0:00:16.1]} 52. a4 {[%clk 0:00:19]} 52... Ra6 {[%clk 0:00:15.4]} 53. Ka3
{[%clk 0:00:18.2]} 53... Be2 {[%clk 0:00:14.3]} 54. Nc5 {[%clk 0:00:17.5]} 54...
Ra5 {[%clk 0:00:14.4]} 55. Kb4 {[%clk 0:00:17.2]} 55... Ra8 {[%clk 0:00:13.9]}
56. Re4 {[%clk 0:00:17]} 56... Bf3 {[%clk 0:00:13.6]} 57. Re3 {[%clk 0:00:16.4]}
57... Bc6 {[%clk 0:00:13.9]} 58. a5 {[%clk 0:00:15.1]} 58... Rb8+ {[%clk
0:00:14.5]} 59. Kc4 {[%clk 0:00:14.8]} 59... Kf6 {[%clk 0:00:15]} 60. Ra3 {[%clk
0:00:14.5]} 60... Bb5+ {[%clk 0:00:15]} 61. Kc3 {[%clk 0:00:13.6]} 61... Rc8
{[%clk 0:00:14.7]} 62. Kb4 {[%clk 0:00:12.9]} 62... Be2 {[%clk 0:00:15.1]} 63.
a6 {[%clk 0:00:12.3]} 63... Bxg4 {[%clk 0:00:14.8]} 64. a7 {[%clk 0:00:12.3]}
64... Ra8 {[%clk 0:00:15.3]} 65. Nd7+ {[%clk 0:00:12.2]} 65... Kxf5 {[%clk
0:00:15.6]} 66. Nb6 {[%clk 0:00:12.7]} 66... Rxa7 {[%clk 0:00:15.8]} 67. Rxa7
{[%clk 0:00:12.3]} 67... Bxh5 {[%clk 0:00:16.7]} 68. Nd5 {[%clk 0:00:11.1]}
68... Bg6 {[%clk 0:00:15.2]} 69. Ne7+ {[%clk 0:00:10.1]} 69... Kf4 {[%clk
0:00:15.4]} 70. Nxg6+ {[%clk 0:00:09.6]} 70... fxg6 {[%clk 0:00:16.3]} 71. Kc5
{[%clk 0:00:09.2]} 71... Ke3 {[%clk 0:00:15.1]} 72. Rg7 {[%clk 0:00:07.5]} 72...
g4 {[%clk 0:00:14.1]} 73. Rxg6 {[%clk 0:00:07.3]} 73... Kf3 {[%clk 0:00:14.8]}
74. Rxh6 {[%clk 0:00:04.9]} 74... g3 {[%clk 0:00:15.2]} 75. Kd4 {[%clk
0:00:05.3]} 75... g2 {[%clk 0:00:13.4]} 76. Rg6 {[%clk 0:00:05.1]} 76... Kf2
{[%clk 0:00:13.5]} 77. Rf6+ {[%clk 0:00:04]} 77... Ke2 {[%clk 0:00:13.7]} 78.
Rg6 {[%clk 0:00:04.5]} 78... Kf1 {[%clk 0:00:13.9]} 79. Rf6+ {[%clk 0:00:04.3]}
79... Ke1 {[%clk 0:00:14]} 80. Rg6 {[%clk 0:00:04.7]} 80... Kf2 {[%clk
0:00:14.1]} 81. Rxg2+ {[%clk 0:00:05.1]} 81... Kxg2 {[%clk 0:00:15]} 1/2-1/2

[Event "*** SCC Grand Prix: Titled Tuesday Blitz"]
[Site "Chess.com"]
[Date "2020.08.11"]
[Round "2"]
[White "serena-maria"]
[Black "kakakz"]
[Result "1/2-1/2"]
[WhiteElo "2269"]
[BlackElo "2450"]
[TimeControl "180+1"]
[EndTime "10:21:19 PDT"]
[Termination "Game drawn - insufficient material"]

1. Nf3 {[%clk 0:03:00.1]} 1... Nf6 {[%clk 0:02:59.1]} 2. g3 {[%clk 0:03:00.6]}
2... g6 {[%clk 0:03:00]} 3. Bg2 {[%clk 0:03:01.1]} 3... Bg7 {[%clk 0:03:00.9]}
4. O-O {[%clk 0:03:01.6]} 4... d6 {[%clk 0:03:01.7]} 5. c4 {[%clk 0:03:02]} 5...
O-O {[%clk 0:03:02.6]} 6. Nc3 {[%clk 0:03:02.5]} 6... c5 {[%clk 0:03:03.5]} 7.
d4 {[%clk 0:03:02.1]} 7... cxd4 {[%clk 0:03:03.2]} 8. Nxd4 {[%clk 0:03:01.7]}
8... Na6 {[%clk 0:03:00.9]} 9. b3 {[%clk 0:02:54.9]} 9... Nc5 {[%clk 0:02:55.4]}
10. Bb2 {[%clk 0:02:54.5]} 10... a6 {[%clk 0:02:54.2]} 11. Rc1 {[%clk
0:02:53.8]} 11... Qa5 {[%clk 0:02:51.7]} 12. e4 {[%clk 0:02:45.9]} 12... Bd7
{[%clk 0:02:46.9]} 13. Qd2 {[%clk 0:02:34.4]} 13... Rab8 {[%clk 0:02:40.8]} 14.
Rfd1 {[%clk 0:02:32]} 14... Rfc8 {[%clk 0:02:40.8]} 15. Nd5 {[%clk 0:02:26.1]}
15... Qxd2 {[%clk 0:02:39.8]} 16. Nxf6+ {[%clk 0:02:21.2]} 16... Bxf6 {[%clk
0:02:38.1]} 17. Rxd2 {[%clk 0:02:22.1]} 17... b5 {[%clk 0:01:39.6]} 18. f4
{[%clk 0:02:08.1]} 18... bxc4 {[%clk 0:01:31.1]} 19. Rxc4 {[%clk 0:02:09]} 19...
Ne6 {[%clk 0:01:31.4]} 20. Rxc8+ {[%clk 0:02:06.6]} 20... Rxc8 {[%clk
0:01:29.8]} 21. Nxe6 {[%clk 0:01:48.5]} 21... Bxb2 {[%clk 0:01:27.5]} 22. Rxb2
{[%clk 0:01:40.1]} 22... Bxe6 {[%clk 0:01:22.3]} 23. Bf1 {[%clk 0:01:08.3]}
23... a5 {[%clk 0:01:17.6]} 24. Kf2 {[%clk 0:01:05.7]} 24... Rb8 {[%clk
0:01:09.2]} 25. Rc2 {[%clk 0:00:55.9]} 25... Rb4 {[%clk 0:01:00.6]} 26. Ke3
{[%clk 0:00:40.5]} 26... a4 {[%clk 0:00:56.9]} 27. Bc4 {[%clk 0:00:12.8]} 27...
axb3 {[%clk 0:00:48.1]} 28. axb3 {[%clk 0:00:13.7]} 28... Bxc4 {[%clk
0:00:36.1]} 29. bxc4 {[%clk 0:00:14.6]} 29... Kf8 {[%clk 0:00:29.3]} 30. Kd4
{[%clk 0:00:13.8]} 30... Ke8 {[%clk 0:00:27.3]} 31. Ra2 {[%clk 0:00:12.4]} 31...
Kd7 {[%clk 0:00:20.7]} 32. Ra7+ {[%clk 0:00:11.7]} 32... Ke6 {[%clk 0:00:20.8]}
33. g4 {[%clk 0:00:10.3]} 33... Rb2 {[%clk 0:00:17.3]} 34. h4 {[%clk 0:00:09]}
34... h6 {[%clk 0:00:16.5]} 35. f5+ {[%clk 0:00:08.4]} 35... gxf5 {[%clk
0:00:16.5]} 36. exf5+ {[%clk 0:00:09.3]} 36... Kf6 {[%clk 0:00:16.1]} 37. g5+
{[%clk 0:00:09.6]} 37... hxg5 {[%clk 0:00:16.2]} 38. hxg5+ {[%clk 0:00:10.2]}
38... Kxg5 {[%clk 0:00:15.8]} 39. Rxe7 {[%clk 0:00:10.8]} 39... Kf6 {[%clk
0:00:16.7]} 40. Re1 {[%clk 0:00:04.6]} 40... Rd2+ {[%clk 0:00:16.7]} 41. Ke4
{[%clk 0:00:04.4]} 41... Rc2 {[%clk 0:00:15.8]} 42. Kd5 {[%clk 0:00:03.8]} 42...
Rd2+ {[%clk 0:00:16.1]} 43. Kc6 {[%clk 0:00:04.1]} 43... Kxf5 {[%clk 0:00:15.8]}
44. Rf1+ {[%clk 0:00:04.3]} 44... Ke6 {[%clk 0:00:16.1]} 45. Re1+ {[%clk
0:00:04.7]} 45... Kf6 {[%clk 0:00:16.5]} 46. Rf1+ {[%clk 0:00:05.2]} 46... Ke7
{[%clk 0:00:16.8]} 47. Re1+ {[%clk 0:00:05.5]} 47... Kf8 {[%clk 0:00:17.2]} 48.
Rf1 {[%clk 0:00:06]} 48... Rd4 {[%clk 0:00:17.3]} 49. Rf6 {[%clk 0:00:04.6]}
49... Ke7 {[%clk 0:00:17.2]} 50. Rf1 {[%clk 0:00:03.6]} 50... Rxc4+ {[%clk
0:00:17.6]} 51. Kd5 {[%clk 0:00:03.9]} 51... Rc5+ {[%clk 0:00:18.1]} 52. Kd4
{[%clk 0:00:04.4]} 52... Re5 {[%clk 0:00:18.4]} 53. Ra1 {[%clk 0:00:04]} 53...
Ke6 {[%clk 0:00:18.4]} 54. Ra8 {[%clk 0:00:04.4]} 54... Rd5+ {[%clk 0:00:15.8]}
55. Ke4 {[%clk 0:00:04.1]} 55... Rh5 {[%clk 0:00:14.3]} 56. Re8+ {[%clk
0:00:03.3]} 56... Kd7 {[%clk 0:00:14.5]} 57. Rg8 {[%clk 0:00:04.2]} 57... Ke7
{[%clk 0:00:12.6]} 58. Rg7 {[%clk 0:00:04.1]} 58... Kf6 {[%clk 0:00:10.3]} 59.
Rg8 {[%clk 0:00:04.5]} 59... Ke6 {[%clk 0:00:10.2]} 60. Re8+ {[%clk 0:00:04.5]}
60... Kf6 {[%clk 0:00:10.4]} 61. Rd8 {[%clk 0:00:04.4]} 61... Ke7 {[%clk
0:00:09.2]} 62. Rg8 {[%clk 0:00:04.9]} 62... Ra5 {[%clk 0:00:09.6]} 63. Rh8
{[%clk 0:00:04.4]} 63... Ra4+ {[%clk 0:00:09.6]} 64. Kd5 {[%clk 0:00:04.6]}
64... Ra5+ {[%clk 0:00:09.8]} 65. Ke4 {[%clk 0:00:04.4]} 65... f5+ {[%clk
0:00:10]} 66. Kf4 {[%clk 0:00:04.3]} 66... Ke6 {[%clk 0:00:09.5]} 67. Rh6+
{[%clk 0:00:04.5]} 67... Kd7 {[%clk 0:00:09.8]} 68. Rf6 {[%clk 0:00:04]} 68...
Ke7 {[%clk 0:00:09.6]} 69. Rh6 {[%clk 0:00:03.7]} 69... Rb5 {[%clk 0:00:07.9]}
70. Rh7+ {[%clk 0:00:04]} 70... Kf6 {[%clk 0:00:07.2]} 71. Rh6+ {[%clk
0:00:04.4]} 71... Ke7 {[%clk 0:00:07.4]} 72. Rh7+ {[%clk 0:00:04.8]} 72... Ke6
{[%clk 0:00:06.8]} 73. Rh6+ {[%clk 0:00:05.3]} 73... Kd5 {[%clk 0:00:07.3]} 74.
Rf6 {[%clk 0:00:05.6]} 74... Kd4 {[%clk 0:00:06.7]} 75. Rxd6+ {[%clk 0:00:05.7]}
75... Kc4 {[%clk 0:00:06.9]} 76. Rf6 {[%clk 0:00:05.7]} 76... Kd4 {[%clk
0:00:07]} 77. Rxf5 {[%clk 0:00:06.2]} 77... Rxf5+ {[%clk 0:00:07.5]} 78. Kxf5
{[%clk 0:00:07.1]} 1/2-1/2